Cogmind - Beta 14 @@@ ROGUE MODE // 2024.08.27 @ 12:05:37 Player: MOPO3 Result: Destroyed by G-34 Mercenary with Small Laser Performance ------------- Evolutions (1) 500 Regions Visited (3) 600 Robots Destroyed (9) 45 Value Destroyed (300) 300 Prototype IDs (0) 0 Alien Tech Used (0) 0 Bonus (0) 0 TOTAL SCORE: 1445 Bonus ------- None Cogmind --------- Core Integrity 0/400 Matter 202/300 Energy 100/100 System Corruption 18% Temperature Cool (15) Movement Core (1350) Ox26 Location -9/Materials Parts ------- > --- POWER (1) -------- (None) > --- PROPULSION (4) --- (None) > --- UTILITY (2) ------ Huge Storage Unit > --- WEAPON (2) ------- (None) > --- INVENTORY (25) --- Nuclear Core Nuclear Core Aluminum Leg VSS Leg VSS Leg Makeshift Leg Light Armor Plating Mini Grenade Launcher Peak State ------------ > --- POWER ------------ Light Nuclear Core > --- PROPULSION ------- VSS Leg VSS Leg VSS Leg VSS Leg > --- UTILITY ---------- Small Storage Unit Launcher Guidance Computer > --- WEAPON ----------- Small Laser Mini Grenade Launcher > --- INVENTORY -------- Ion Engine Light Ion Engine Aluminum Leg Aluminum Leg Aluminum Leg Makeshift Leg Heat Sink Makeshift Microdissipator Network [Rating: 24] Favorites ----------- Power Light Nuclear Core Engine Ion Engine Power Core Light Nuclear Core Propulsion Aluminum Leg Leg Aluminum Leg Utility Small Storage Unit Device Improved Heat Sink Storage Small Storage Unit Processor Launcher Guidance Computer Weapon Assault Rifle Energy Gun Small Laser Ballistic Gun Assault Rifle Launcher Mini Grenade Launcher Build | -11 -10 -10 -9 ------- Run | Yrd Mat Min Mat Slots Evolved 2 | . . . 2 Power . | . . . . Propulsion 2 | . . . 2 Utility . | . . . . Weapon . | . . . . Parts Attached 23 | 6 2 3 12 Power 3 | 1 1 . 1 Engine 1 | 1 . . . Core 2 | . 1 . 1 Reactor . | . . . . Propulsion 11 | 2 . 1 8 Treads . | . . . . Leg 11 | 2 . 1 8 Wheel . | . . . . Hover . | . . . . Flight . | . . . . Utility 4 | 1 1 1 1 Device 1 | . 1 . . Storage 2 | 1 . . 1 Processor 1 | . . 1 . Hackware . | . . . . Protection . | . . . . Artifact . | . . . . Weapon 5 | 2 . 1 2 Energy Gun 1 | . . 1 . Energy Cannon . | . . . . Ballistic Gun 2 | 2 . . . Ballistic Cannon . | . . . . Launcher 2 | . . . 2 Special Weapon . | . . . . Impact Weapon . | . . . . Slashing Weapon . | . . . . Piercing Weapon . | . . . . Special Melee Weapon . | . . . . Unidentified Prototypes . | . . . . Parts Lost 12 | . . 3 9 Power 1 | . . . 1 Propulsion 5 | . . 1 4 Utility 1 | . . . 1 Weapon 5 | . . 2 3 Highest Loss Streak 9 | . . 3 9 To Critical Strikes 1 | . . . 1 Average Slot Usage (%) 90 | . 90 93 85 Engine 2 | . 8 . . Core 10 | . 5 14 9 Leg 29 | . 28 27 33 Device 5 | . 4 9 . Storage 13 | . 14 14 11 Processor 4 | . . 4 10 Energy Gun 4 | . . 4 9 Ballistic Gun 15 | . 28 18 . Launcher 2 | . . . 10 Peak Build Rating 24 | 6 11 12 24 Average Rating 12 | 4 7 11 18 On Entrance 7 | . 6 11 12 Naked Turns . | . . . . Heaviest Build 89 | 14 15 15 89 Greatest Support 48 | 20 20 20 48 Greatest Overweight (x) 29 | . . 1 29 Average Overweight (x) . | . . . . Largest Inventory Capacity 25 | 8 8 8 25 Average Capacity 9 | 7 8 8 15 Most Carried 9 | 5 8 8 9 Average Carried 6 | 1 3 7 7 Final Capacity 25 | 8 8 8 25 Final Carried 8 | 2 8 8 8 Class Distribution -------------------- 85% | Mutant 14% | Scavenger-Mutant Dominant Class ---------------- Mutant | -10/Materials Mutant | -10/Mines Scavenger-Mutant | -9/Materials Resources | -11 -10 -10 -9 ----------- Run | Yrd Mat Min Mat Matter Collected 504 | 68 123 255 58 Remotely . | . . . . Salvage Created 266 | . 123 52 91 Parts 17 | . 8 4 5 Haulers Intercepted . | . . . . Recyclers Shooed . | . . . . Parts Field Recycled . | . . . . Retrieved Matter . | . . . . Parts Self-Destructed . | . . . . Prevented . | . . . . Kills | -11 -10 -10 -9 ------- Run | Yrd Mat Min Mat Combat Hostiles Destroyed 10 | . 3 4 3 Guns 7 | . 3 4 . AOE 3 | . . . 3 Classes Destroyed 4 | . 1 2 1 Swarmer 3 | . . 3 . Grunt 3 | . 3 . . Sentry 3 | . . . 3 Assembled 1 | . . 1 . Best Kill Streak 2 | . 2 2 1 Combat Bots Only 2 | . 2 2 1 Max Kills in Single Turn 1 | . 1 1 1 Gunslinging . | . . . . Exploded 1 | . . . 1 Melee . | . . . . Uniques/NPCs Destroyed . | . . . . Combat | -11 -10 -10 -9 -------- Run | Yrd Mat Min Mat Hostile Shots Fired 134 | . 15 31 88 Missed 23 | . 4 5 14 Damage Taken 1892 | . 139 442 1311 Core 529 | . 30 99 400 Absorbed by Shields . | . . . . Core Remaining (%) 74 | 100 . 48 . Volleys Fired 37 | . 9 19 9 Largest 2 | . 2 2 2 Hottest 70 | . 40 40 70 Shots Fired 69 | . 18 34 17 Gun 60 | . 18 34 8 Cannon . | . . . . Launcher 9 | . . . 9 Special . | . . . . Kinetic 52 | . 18 34 . Thermal 8 | . . . 8 Explosive 8 | . . . 8 Electromagnetic 1 | . . . 1 Robot Hit Streak 7 | . 6 6 7 Robot Miss Streak 3 | . 1 3 1 Penetration Max . | . . . . Secondary Targets 1 | . 1 . . Max Gunslinging Chain 1 | . 1 . . Shots Hit Robots 47 | . 13 20 14 Core Hits 25 | . 7 8 10 Critical Kills . | . . . . Critical Parts Destroyed . | . . . . Critical Strikes . | . . . . Melee Attacks . | . . . . Impact . | . . . . Slashing . | . . . . Piercing . | . . . . Sneak Attacks . | . . . . Combat Hostiles . | . . . . Follow-up Attacks . | . . . . Damage Inflicted 735 | . 197 237 301 Guns 475 | . 184 237 54 Cannons . | . . . . Explosions 246 | . . . 246 Melee . | . . . . Ramming 14 | . 13 . 1 Kinetic 421 | . 184 237 . Thermal 54 | . . . 54 Explosive 188 | . . . 188 Electromagnetic 58 | . . . 58 Impact . | . . . . Slashing . | . . . . Piercing . | . . . . Highest Corruption 18 | . . . 18 Average Corruption 9 | . . . 9 Corruption Purged . | . . . . Corruption Blocked . | . . . . Effects 3 | . . . 3 Message Errors 1 | . . . 1 Heat Flow Errors 2 | . . . 2 Overload Shots . | . . . . Overflow Damage . | . . . . Projectiles . | . . . . Explosions . | . . . . Melee . | . . . . Knockbacks . | . . . . Impact . | . . . . Kinetic . | . . . . Secondary . | . . . . Self-Inflicted Damage 86 | . . . 86 Shots 3 | . . . 3 Rammed 1 | . . . 1 Targets Rammed 2 | . 1 . 1 Kicked 1 | . 1 . . Crushed . | . . . . Highest Temperature 270 | . 8 1 270 Average Temperature 65 | . 3 1 74 Received Heat Transfer 505 | . 75 100 330 Siege Activations . | . . . . Robots Corrupted . | . . . . Combat Hostiles . | . . . . Parts Fried . | . . . . Impact Corruptions . | . . . . Robots Melted . | . . . . Combat Hostiles . | . . . . Parts Melted . | . . . . Heat Transferred 125 | . . . 125 Parts Sabotaged . | . . . . Parts Stolen . | . . . . Parts Stripped . | . . . . Power Chain Reactions . | . . . . Alert | -11 -10 -10 -9 ------- Run | Yrd Mat Min Mat Peak Influence 150 | . 91 150 144 Initial 35 | . . 35 . Average 45 | . 25 59 45 Maximum Alert Level . | . . . . Low Security (%) 100 | 100 100 100 100 Level 1 . | . . . . Level 2 . | . . . . Level 3 . | . . . . Level 4 . | . . . . Level 5 . | . . . . High Security . | . . . . Max Security . | . . . . Squads Dispatched 1 | . . . 1 Investigation 1 | . . . 1 Extermination . | . . . . Reinforcement . | . . . . Assault . | . . . . Garrison . | . . . . Intercept . | . . . . Searches Triggered . | . . . . Construction Impeded . | . . . . Haulers Reinforced . | . . . . Active Scanning Responses . | . . . . Cargo Convoy Interrupts . | . . . . Stealth | -11 -10 -10 -9 --------- Run | Yrd Mat Min Mat Distress Signals 1 | . 1 . . Communications Jammed . | . . . . Distress Signals . | . . . . Times Spotted 18 | . 5 6 7 Peak Tracking Total 7 | . 3 7 5 Tactical Retreats 1 | . . 1 . Traps | -11 -10 -10 -9 ------- Run | Yrd Mat Min Mat Traps Triggered 1 | . . . 1 Indirectly . | . . . . Trap Hack Attempts . | . . . . Triggered . | . . . . Disarmed . | . . . . Reprogrammed . | . . . . Reused . | . . . . Traps Extracted . | . . . . Installed . | . . . . Triggered . | . . . . Machines | -11 -10 -10 -9 ---------- Run | Yrd Mat Min Mat Machines Disabled 2 | . . 1 1 Max in Single Turn 1 | . . 1 1 Machines Repaired . | . . . . Machines Dismantled . | . . . . Machines Sabotaged . | . . . . Overloaded Fab Kills . | . . . . Hacking | -11 -10 -10 -9 --------- Run | Yrd Mat Min Mat Machines Accessed 2 | . 2 . . Terminals 2 | . 2 . . Fabricators . | . . . . Repair Stations . | . . . . Recycling Units . | . . . . Scanalyzers . | . . . . Garrison Access . | . . . . Total Hacks 4 | . 4 . . Successful 4 | . 4 . . Failed . | . . . . Catastrophic . | . . . . Database Lockouts . | . . . . Manual 1 | . 1 . . Terminals 4 | . 4 . . Fabricators . | . . . . Repair Stations . | . . . . Recycling Units . | . . . . Scanalyzers . | . . . . Garrison Access . | . . . . Terminal Hacks 4 | . 4 . . Alert Level 1 | . 1 . . Locate Traps 1 | . 1 . . Dispatch Records 1 | . 1 . . Zone Layout 1 | . 1 . . Fabricator Hacks . | . . . . Repair Station Hacks . | . . . . Recycling Unit Hacks . | . . . . Scanalyzer . | . . . . Garrison Access Hacks . | . . . . Unauthorized Hacks . | . . . . Terminals . | . . . . Fabricators . | . . . . Repair Stations . | . . . . Recycling Units . | . . . . Scanalyzers . | . . . . Garrison Access . | . . . . Data Cores Recovered . | . . . . Used . | . . . . Hacking Detections 1 | . 1 . . Full Trace Events . | . . . . Feedback Events . | . . . . Feedback Blocked . | . . . . Robot Schematics Acquired . | . . . . Robots Built . | . . . . Authchips . | . . . . Time . | . . . . Total Robot Build Rating . | . . . . Part Schematics Acquired . | . . . . Parts Built . | . . . . Authchips . | . . . . Time . | . . . . Total Part Build Rating . | . . . . Parts Repaired . | . . . . Time . | . . . . Parts Recycled . | . . . . Recycled Matter . | . . . . Retrieved Matter . | . . . . Retrieved Components . | . . . . Parts Scanalyzed . | . . . . Part Schematics Acquired . | . . . . Parts Damaged . | . . . . Bothacking | -11 -10 -10 -9 ------------ Run | Yrd Mat Min Mat Used RIF Installer . | . . . . Robots Hacked . | . . . . Non-combat . | . . . . Combat . | . . . . Robot Hacks Applied . | . . . . Relay Couplers Released . | . . . . Fabnet Peak Effective % . | . . . . Robots Rewired . | . . . . Allies Hacked . | . . . . Hacks Repelled . | . . . . Allies | -11 -10 -10 -9 -------- Run | Yrd Mat Min Mat Total Allies 2 | . . 2 . Largest Group 2 | . . 2 . Highest-Rated Group 53 | . . 53 . Highest-Rated Ally 31 | . . 31 . Total Orders . | . . . . Ally Attacks 12 | . . 12 . Total Damage 62 | . . 62 . Kills 2 | . . 2 . Allies Corrupted . | . . . . Allies Melted . | . . . . Intel | -11 -10 -10 -9 ------- Run | Yrd Mat Min Mat Robot Analysis Total . | . . . . Derelict Logs Recovered . | . . . . Drone Launches . | . . . . Drone Recoveries . | . . . . Exploration | -11 -10 -10 -9 ------------- Run | Yrd Mat Min Mat Turns Passed 1075 | 45 237 507 286 Spaces Moved 673 | 31 159 333 150 Core 10 | 8 . . 2 Treads . | . . . . Legs 663 | 23 159 333 148 Wheels . | . . . . Hover . | . . . . Flight . | . . . . Fastest Speed 50 | 50 120 120 90 Average Speed 126 | 101 120 121 148 Slowest Speed 1500 | 120 120 190 1500 Overloaded Moves . | . . . . Propulsion Burnouts . | . . . . Robots Hopped . | . . . . Cave-ins Triggered . | . . . . Exploration Rate (%) 25 | 4 26 58 15 Regions Visited 3 Branch Regions 1 Pre-discovered Areas 1 | . . 1 . Known Exits Taken . | . . . . Unknown Exits Taken 3 | 1 1 1 . Scrap Searched . | . . . . Spaces Dug . | . . . . Terrain Destroyed 71 | . . . 71 Melee . | . . . . Projectile . | . . . . AOE 71 | . . . 71 Terrain Rammed . | . . . . Walls Destroyed . | . . . . Machines Disabled . | . . . . Actions | -11 -10 -10 -9 --------- Run | Yrd Mat Min Mat Total 825 | 44 186 403 192 Wait 50 | . 9 41 . Move 670 | 30 158 332 150 Hop . | . . . . Pick Up 32 | 8 7 5 12 Fast Attach . | . . . . Attach 13 | 6 1 2 4 Detach . | . . . . Swap 10 | . 1 1 8 Drop 11 | . . 3 8 Fire 37 | . 9 19 9 Melee . | . . . . Ram 1 | . . . 1 Kick 1 | . 1 . . Crush . | . . . . Escape Stasis . | . . . . Rewire . | . . . . Trap . | . . . . Miscellaneous . | . . . . Route ------- -11/Scrapyard -10/Materials -10/Mines -9/Materials (discovered 1 exit: [*Sto]) History --------- Turn | Location | Event 20 | -11/Scrapyard | Discovered new exit (range 16) 46 | -11/Scrapyard | Entered Materials 248 | -10/Materials | Discovered new exit (range 16) 283 | -10/Materials | Entered Mines 316 | -10/Mines | Build established: Mutant 555 | -10/Mines | Assembled infested the area 615 | -10/Mines | Core integrity fell below 50% 650 | -10/Mines | Lost 3 parts (1n2w) 670 | -10/Mines | Learned location of Storage (-9) 780 | -10/Mines | Discovered new exit (range 9) 790 | -10/Mines | Entered Materials 790 | -9/Materials | Evolved 2 slots: Propulsion x2 793 | -9/Materials | Discovered new exit (range 14) 1054 | -9/Materials | System corruption reached 10% 1065 | -9/Materials | Core integrity fell below 50% 1073 | -9/Materials | Core integrity fell below 20% 1076 | -9/Materials | Destroyed by G-34 Mercenary with Small Laser Last Messages --------------- System corrupted by crushing effect (+3). Sml. Laser destroyed. System corrupted by crushing effect (+4). System corrupted: Heat flow error (+291). VSS Leg destroyed. Knocked back. The unstable cave ceiling collapses. Nuclear Core destroyed. TFR, 2VRG O =97BOG3ZBA 7ERFEQLV Mni. Grenade Launcher destroyed. Launcher Guidance Computer destroyed. System corrupted by crushing effect (+5). Y-45 Defender destroyed. Critical hit (Burn: +37). Acquired 18 matter. Critical hit (Burn: +37). EMP Blaster destroyed. System corrupted by crushing effect (+5). System corrupted: Heat flow error (+152). Slammed into B-36 Bruiser. Map ----- +----------------------------------------------------+ | ????????????????????????????????????????????#+#### | | ????????????????????????????????????????????? | | ?????????????????????????????????????????????? | | ???????????????????????????????????????????????? | | ???????????????????????????????????## ????????? | | ???????????????? ?????????????? #+#### | | ?????????????? ! ?????????????? ?? + | | ??????????????# ????????????###+#####??# | | ?????????????? #????+#????# #?# !! | | ?????????????? # # ???? ???# #?# !! | | ?????????????## # "S ????# """ """ #?# | | ?????????????? """ ????# """ """ #?# | | ?????????????? "" ""????# """ """ ######## | | ????????????#### "?????# # | | ????????????? % ??????# # | | ?????????????? [ # ???????# !#""" | | ??????????????? ????????#####+#####""" | | ???????????????? # #####?????????# #???#""" | | ????????????????# !#?????????# #???#""" | | ????????????????# / #?????????# #???#""" | | ????????????????# # """ ########??# #???# | | ????????????????# # """ + #??# #???# | | ???????####?????# # """ # #?## ##??###+#### | | ??????# ?# # # ### #????# #??? | | ?????????? + ####### #????# #??? | | ????????????????# b@Y #### #????# #### | | ????????????????+ ##+####g# #?## ##???## ## | | ????????????????#### ### #??# ###### # | | ???????????????????#"" #??# + | | ???????????????????#"Y ########??######## # | | ???????????????????#"" #????????????????##### | | ???????????????????# #????????????????????# | | ???????????????????########????????????????????### | | | | | | | | | | | | | | | | | | | | | | | | | | | | | | | | | | | +----------------------------------------------------+ Best States ------------- Heat Dissipation 39 Energy Generation 14 Energy Capacity 250 Matter Stores 300 Matter Capacity 300 Sight Range 16 Terrain Scan Density 10 Evasion (%) 57 Launcher Accuracy 20 Item Schematics ----------------- None Robot Schematics ------------------ None Fabricated ------------ Nothing Alien Tech Used ----------------- None Achievements -------------- I Survived The Infestation Challenges ------------ None Game ------ Seed MeleeCoordinationMonowheel Manual? 0 Play Time 00:14:53 Cumulative 5.5 hours Start 2024.08.27 @ 11:52:39 End 2024.08.27 @ 12:05:37 Sessions 1 Manual Loads 0 Difficulty Rogue Special Mode None Game No. 10 Rogue 10 Adventurer 0 Explorer 0 Win Type - Total 0 Types 0/0/0/0/0/0/0/0/0 Lore% 4 Gallery% 10 Achievement% 13 Wizard Run 0 Options --------- Layout 1 ASCII 0 Keyboard 0 Movement Numpad Keybinds 0 Fullscreen 1 Font 24/CogTall Map View 50x35 Zoom Use 0% Tactical HUD 0 Map Filters NONE Filters NONE Steam 1 RUN: 58568442-1602-4633-a0c7-4ac33b43ddef